[Event "Titled Tuesday Blitz July 25 Early 2023"]
[White "Tsaruk, Maksim"]
[Black "Luxama, Jacques Muller"]
[WhiteFideId "13511173"]
[BlackFideId "11900113"]
[WhiteElo "2790"]
[BlackElo "2193"]
[Result "1-0"]
[Round "3"]
[TimeControl "180+2"]
[Date "2023.07.25"]
[WhiteClock "0:00:18"]
[BlackClock "0:00:42"]
[Board "52"]

1. e4 {[%clk 0:03:00]}  e6 {[%clk 0:02:58]} 2. d4 {[%clk 0:03:00]}  d5 {[%clk 0:02:58]} 3. Nd2 {[%clk 0:03:01]}  dxe4 {[%clk 0:02:57]} 4. Nxe4 {[%clk 0:03:01]}  Nd7 {[%clk 0:02:58]} 5. Nf3 {[%clk 0:03:01]}  Ngf6 {[%clk 0:02:58]} 6. Nxf6+ {[%clk 0:03:01]}  Nxf6 {[%clk 0:02:58]} 7. c3 {[%clk 0:03:02]}  Be7 {[%clk 0:02:59]} 8. Bd3 {[%clk 0:03:02]}  O-O {[%clk 0:03:00]} 9. Bf4 {[%clk 0:02:45]}  c5 {[%clk 0:02:59]} 10. dxc5 {[%clk 0:02:42]}  Bxc5 {[%clk 0:02:59]} 11. Qe2 {[%clk 0:02:41]}  Nd5 {[%clk 0:02:43]} 12. Bg3 {[%clk 0:02:40]}  Qb6 {[%clk 0:02:39]} 13. O-O {[%clk 0:02:36]}  Bd6 {[%clk 0:02:33]} 14. Rad1 {[%clk 0:02:08]}  Bxg3 {[%clk 0:02:32]} 15. hxg3 {[%clk 0:02:09]}  Nf6 {[%clk 0:02:25]} 16. Ne5 {[%clk 0:02:06]}  Rd8 {[%clk 0:02:22]} 17. g4 {[%clk 0:02:02]}  h6 {[%clk 0:02:20]} 18. Rd2 {[%clk 0:01:16]}  Bd7 {[%clk 0:02:19]} 19. Rfd1 {[%clk 0:01:13]}  Ba4 {[%clk 0:02:18]} 20. b3 {[%clk 0:01:12]}  Be8 {[%clk 0:02:18]} 21. c4 {[%clk 0:01:10]}  Rac8 {[%clk 0:02:04]} 22. Kh1 {[%clk 0:01:04]}  Kf8 {[%clk 0:01:51]} 23. f4 {[%clk 0:01:04]}  Rd4 {[%clk 0:01:45]} 24. g3 {[%clk 0:00:38]}  Rcd8 {[%clk 0:01:42]} 25. Bc2 {[%clk 0:00:37]}  Rxd2 {[%clk 0:01:41]} 26. Rxd2 {[%clk 0:00:38]}  Rxd2 {[%clk 0:01:37]} 27. Qxd2 {[%clk 0:00:39]}  Bc6+ {[%clk 0:01:31]} 28. Kh2 {[%clk 0:00:40]}  Ke7 {[%clk 0:01:23]} 29. b4 {[%clk 0:00:33]}  Be8 {[%clk 0:01:08]} 30. g5 {[%clk 0:00:23]}  hxg5 {[%clk 0:01:07]} 31. fxg5 {[%clk 0:00:23]}  Nd7 {[%clk 0:01:07]} 32. c5 {[%clk 0:00:22]}  Qc7 {[%clk 0:01:07]} 33. Nc4 {[%clk 0:00:22]}  Ne5 {[%clk 0:01:02]} 34. Qd6+ {[%clk 0:00:21]}  Qxd6 {[%clk 0:00:56]} 35. cxd6+ {[%clk 0:00:22]}  Kd7 {[%clk 0:00:56]} 36. Nxe5+ {[%clk 0:00:22]}  Kxd6 {[%clk 0:00:57]} 37. Nf3 {[%clk 0:00:16]}  f6 {[%clk 0:00:56]} 38. gxf6 {[%clk 0:00:16]}  gxf6 {[%clk 0:00:57]} 39. Bb3 {[%clk 0:00:15]}  Bc6 {[%clk 0:00:55]} 40. Kg2 {[%clk 0:00:16]}  e5 {[%clk 0:00:55]} 41. Kf2 {[%clk 0:00:16]}  b6 {[%clk 0:00:53]} 42. Ke3 {[%clk 0:00:16]}  a5 {[%clk 0:00:52]} 43. a3 {[%clk 0:00:14]}  axb4 {[%clk 0:00:52]} 44. axb4 {[%clk 0:00:15]}  Bd5 {[%clk 0:00:50]} 45. Bc2 {[%clk 0:00:11]}  Bc6 {[%clk 0:00:48]} 46. Nd2 {[%clk 0:00:11]}  Bd5 {[%clk 0:00:45]} 47. Ne4+ {[%clk 0:00:10]}  Ke6 {[%clk 0:00:44]} 48. Nc3 {[%clk 0:00:11]}  Bc4 {[%clk 0:00:43]} 49. g4 {[%clk 0:00:11]}  Ke7 {[%clk 0:00:41]} 50. Bf5 {[%clk 0:00:12]}  Kd6 {[%clk 0:00:40]} 51. Ne4+ {[%clk 0:00:12]}  Ke7 {[%clk 0:00:40]} 52. Kd2 {[%clk 0:00:10]}  Bd5 {[%clk 0:00:39]} 53. Kc3 {[%clk 0:00:10]}  Be6 {[%clk 0:00:39]} 54. Bxe6 {[%clk 0:00:08]}  Kxe6 {[%clk 0:00:40]} 55. Kc4 {[%clk 0:00:06]}  f5 {[%clk 0:00:40]} 56. gxf5+ {[%clk 0:00:06]}  Kxf5 {[%clk 0:00:41]} 57. Nc3 {[%clk 0:00:07]}  e4 {[%clk 0:00:39]} 58. Kd4 {[%clk 0:00:07]}  e3 {[%clk 0:00:37]} 59. Kxe3 {[%clk 0:00:08]}  Ke5 {[%clk 0:00:38]} 60. Kd3 {[%clk 0:00:08]}  Kd6 {[%clk 0:00:37]} 61. Kc4 {[%clk 0:00:09]}  Kc6 {[%clk 0:00:37]} 62. b5+ {[%clk 0:00:10]}  Kd6 {[%clk 0:00:37]} 63. Kd4 {[%clk 0:00:10]}  Ke6 {[%clk 0:00:36]} 64. Nd5 {[%clk 0:00:11]}  Kd6 {[%clk 0:00:37]} 65. Nxb6 {[%clk 0:00:12]}  Kc7 {[%clk 0:00:37]} 66. Nc4 {[%clk 0:00:13]}  Kb7 {[%clk 0:00:38]} 67. Kc5 {[%clk 0:00:14]}  Kc7 {[%clk 0:00:38]} 68. b6+ {[%clk 0:00:15]}  Kb7 {[%clk 0:00:39]} 69. Kb5 {[%clk 0:00:15]}  Kb8 {[%clk 0:00:39]} 70. Kc6 {[%clk 0:00:16]}  Kc8 {[%clk 0:00:40]} 71. Ne5 {[%clk 0:00:16]}  Kb8 {[%clk 0:00:41]} 72. Nd7+ {[%clk 0:00:16]}  Kc8 {[%clk 0:00:41]} 73. b7+ {[%clk 0:00:16]}  Kd8 {[%clk 0:00:42]} 74. b8=Q+ {[%clk 0:00:17]}  Ke7 {[%clk 0:00:43]} 75. Qf8+ {[%clk 0:00:17]}  Ke6 {[%clk 0:00:42]} 76. Qf6# {[%clk 0:00:18]} 1-0


[Site "https://www.chess.com"]

[Event "Titled Tuesday Blitz July 25 Early 2023"]
[White "Parpiev, Isaak"]
[Black "Kamsky, Gata"]
[WhiteFideId "34281576"]
[BlackFideId "2000024"]
[WhiteElo "2609"]
[BlackElo "2965"]
[Result "1/2-1/2"]
[Round "3"]
[TimeControl "180+2"]
[Date "2023.07.25"]
[WhiteClock "0:00:03"]
[BlackClock "0:00:20"]
[Board "56"]

1. d4 {[%clk 0:02:54]}  Nf6 {[%clk 0:02:56]} 2. c4 {[%clk 0:02:54]}  g6 {[%clk 0:02:55]} 3. Nc3 {[%clk 0:02:54]}  Bg7 {[%clk 0:02:55]} 4. e4 {[%clk 0:02:54]}  d6 {[%clk 0:02:55]} 5. Be2 {[%clk 0:02:54]}  e5 {[%clk 0:02:55]} 6. d5 {[%clk 0:02:38]}  Na6 {[%clk 0:02:55]} 7. Nf3 {[%clk 0:02:24]}  Nc5 {[%clk 0:02:54]} 8. Qc2 {[%clk 0:02:24]}  a5 {[%clk 0:02:54]} 9. Nd2 {[%clk 0:02:09]}  O-O {[%clk 0:02:49]} 10. O-O {[%clk 0:02:09]}  Ne8 {[%clk 0:02:41]} 11. f3 {[%clk 0:01:56]}  Bh6 {[%clk 0:02:35]} 12. Nb3 {[%clk 0:01:52]}  Bxc1 {[%clk 0:02:34]} 13. Qxc1 {[%clk 0:01:44]}  b6 {[%clk 0:02:34]} 14. Nxc5 {[%clk 0:01:40]}  bxc5 {[%clk 0:02:33]} 15. Qe3 {[%clk 0:01:40]}  f5 {[%clk 0:02:30]} 16. Bd1 {[%clk 0:01:39]}  f4 {[%clk 0:02:16]} 17. Qd2 {[%clk 0:01:38]}  Bd7 {[%clk 0:02:15]} 18. Ba4 {[%clk 0:01:36]}  Bxa4 {[%clk 0:02:15]} 19. Nxa4 {[%clk 0:01:37]}  Nf6 {[%clk 0:02:13]} 20. Nc3 {[%clk 0:01:35]}  a4 {[%clk 0:02:09]} 21. Qc2 {[%clk 0:01:18]}  Qd7 {[%clk 0:02:07]} 22. Nb5 {[%clk 0:01:17]}  g5 {[%clk 0:02:05]} 23. Kf2 {[%clk 0:01:13]}  g4 {[%clk 0:02:04]} 24. Ke2 {[%clk 0:01:09]}  Kh8 {[%clk 0:02:03]} 25. Rf2 {[%clk 0:00:50]}  Rg8 {[%clk 0:02:02]} 26. Kd2 {[%clk 0:00:45]}  g3 {[%clk 0:01:56]} 27. hxg3 {[%clk 0:00:44]}  fxg3 {[%clk 0:01:56]} 28. Rff1 {[%clk 0:00:38]}  Nh5 {[%clk 0:01:57]} 29. Rae1 {[%clk 0:00:30]}  Nf4 {[%clk 0:01:56]} 30. Kc1 {[%clk 0:00:29]}  Rgb8 {[%clk 0:01:49]} 31. Kb1 {[%clk 0:00:24]}  Rxb5 {[%clk 0:01:45]} 32. cxb5 {[%clk 0:00:24]}  Qxb5 {[%clk 0:01:46]} 33. a3 {[%clk 0:00:21]}  Rb8 {[%clk 0:01:45]} 34. Ka1 {[%clk 0:00:18]}  Qa6 {[%clk 0:01:41]} 35. Rh1 {[%clk 0:00:16]}  Rb3 {[%clk 0:01:39]} 36. Rh4 {[%clk 0:00:14]}  Qd3 {[%clk 0:01:19]} 37. Qxd3 {[%clk 0:00:13]}  Rxd3 {[%clk 0:01:18]} 38. Reh1 {[%clk 0:00:12]}  h5 {[%clk 0:01:09]} 39. Rxh5+ {[%clk 0:00:09]}  Nxh5 {[%clk 0:01:09]} 40. Rxh5+ {[%clk 0:00:09]}  Kg7 {[%clk 0:01:10]} 41. Rg5+ {[%clk 0:00:10]}  Kf7 {[%clk 0:01:08]} 42. Rxg3 {[%clk 0:00:11]}  Rd2 {[%clk 0:01:05]} 43. Kb1 {[%clk 0:00:11]}  c4 {[%clk 0:01:03]} 44. Rg5 {[%clk 0:00:09]}  Rf2 {[%clk 0:01:01]} 45. Rf5+ {[%clk 0:00:08]}  Kg7 {[%clk 0:00:58]} 46. g4 {[%clk 0:00:07]}  Rg2 {[%clk 0:00:53]} 47. Rg5+ {[%clk 0:00:07]}  Kf7 {[%clk 0:00:52]} 48. Kc1 {[%clk 0:00:05]}  Rf2 {[%clk 0:00:51]} 49. Rf5+ {[%clk 0:00:05]}  Kg7 {[%clk 0:00:51]} 50. Kb1 {[%clk 0:00:06]}  Rg2 {[%clk 0:00:51]} 51. Rg5+ {[%clk 0:00:06]}  Kf7 {[%clk 0:00:51]} 52. Rh5 {[%clk 0:00:05]}  Kg7 {[%clk 0:00:50]} 53. Kc1 {[%clk 0:00:03]}  Rf2 {[%clk 0:00:49]} 54. Rf5 {[%clk 0:00:03]}  Rg2 {[%clk 0:00:49]} 55. Kb1 {[%clk 0:00:03]}  Rf2 {[%clk 0:00:49]} 56. Ka1 {[%clk 0:00:03]}  Rf1+ {[%clk 0:00:47]} 57. Ka2 {[%clk 0:00:04]}  Rg1 {[%clk 0:00:37]} 58. f4 {[%clk 0:00:02]}  exf4 {[%clk 0:00:28]} 59. Rxf4 {[%clk 0:00:03]}  Rc1 {[%clk 0:00:20]} 60. Rf5 {[%clk 0:00:02]}  Re1 {[%clk 0:00:19]} 61. Rf4 {[%clk 0:00:02]}  Rc1 {[%clk 0:00:19]} 62. Rf5 {[%clk 0:00:02]}  Re1 {[%clk 0:00:19]} 63. Rf4 {[%clk 0:00:03]}  Rc1 {[%clk 0:00:20]} 1/2-1/2


[Site "https://www.chess.com"]

[Event "Titled Tuesday Blitz July 25 Early 2023"]
[White "Krutko, Anatoly"]
[Black "Kushagra Mohan"]
[WhiteFideId "4185862"]
[BlackFideId "25033638"]
[WhiteElo "2567"]
[BlackElo "2869"]
[Result "1-0"]
[Round "3"]
[TimeControl "180+2"]
[Date "2023.07.25"]
[WhiteClock "0:00:55"]
[BlackClock "0:00:32"]
[Board "60"]

1. d4 {[%clk 0:03:00]}  Nf6 {[%clk 0:02:58]} 2. Nc3 {[%clk 0:03:00]}  d5 {[%clk 0:02:58]} 3. Bg5 {[%clk 0:03:00]}  Nbd7 {[%clk 0:02:55]} 4. e3 {[%clk 0:03:00]}  e6 {[%clk 0:02:54]} 5. a3 {[%clk 0:03:00]}  h6 {[%clk 0:02:53]} 6. Bh4 {[%clk 0:03:00]}  Be7 {[%clk 0:02:53]} 7. f4 {[%clk 0:03:00]}  O-O {[%clk 0:02:53]} 8. Bd3 {[%clk 0:03:01]}  c5 {[%clk 0:02:53]} 9. Nf3 {[%clk 0:03:01]}  b6 {[%clk 0:02:53]} 10. O-O {[%clk 0:03:01]}  Bb7 {[%clk 0:02:53]} 11. Ne5 {[%clk 0:03:01]}  Rc8 {[%clk 0:02:51]} 12. Qe1 {[%clk 0:02:57]}  Ne4 {[%clk 0:02:49]} 13. Bxe7 {[%clk 0:02:57]}  Qxe7 {[%clk 0:02:50]} 14. Bxe4 {[%clk 0:02:57]}  dxe4 {[%clk 0:02:50]} 15. Nxd7 {[%clk 0:02:58]}  Qxd7 {[%clk 0:02:51]} 16. dxc5 {[%clk 0:02:57]}  Rxc5 {[%clk 0:02:50]} 17. Rd1 {[%clk 0:02:57]}  Qe7 {[%clk 0:02:49]} 18. Rd4 {[%clk 0:02:57]}  f5 {[%clk 0:02:49]} 19. Qd2 {[%clk 0:02:57]}  Rc7 {[%clk 0:02:19]} 20. Nb5 {[%clk 0:02:42]}  e5 {[%clk 0:02:12]} 21. fxe5 {[%clk 0:02:30]}  Rc5 {[%clk 0:02:07]} 22. Nd6 {[%clk 0:02:15]}  Ba6 {[%clk 0:01:55]} 23. Nxf5 {[%clk 0:02:03]}  Qxe5 {[%clk 0:01:31]} 24. Nxh6+ {[%clk 0:02:03]}  gxh6 {[%clk 0:01:26]} 25. Rxf8+ {[%clk 0:02:03]}  Kxf8 {[%clk 0:01:27]} 26. Rd8+ {[%clk 0:02:03]}  Kf7 {[%clk 0:01:22]} 27. Qd7+ {[%clk 0:02:03]}  Qe7 {[%clk 0:01:22]} 28. Qd4 {[%clk 0:01:49]}  Rf5 {[%clk 0:01:15]} 29. g3 {[%clk 0:01:38]}  Bb5 {[%clk 0:01:05]} 30. Qh8 {[%clk 0:01:27]}  Qf6 {[%clk 0:00:57]} 31. Rf8+ {[%clk 0:01:26]}  Ke7 {[%clk 0:00:51]} 32. Rxf6 {[%clk 0:01:26]}  Rxf6 {[%clk 0:00:51]} 33. Qh7+ {[%clk 0:01:23]}  Kd6 {[%clk 0:00:48]} 34. Qxe4 {[%clk 0:01:21]}  Bc6 {[%clk 0:00:46]} 35. Qd4+ {[%clk 0:01:20]}  Ke7 {[%clk 0:00:47]} 36. Qe5+ {[%clk 0:01:19]}  Re6 {[%clk 0:00:46]} 37. Qc7+ {[%clk 0:01:19]}  Kf6 {[%clk 0:00:46]} 38. Qxa7 {[%clk 0:01:17]}  Kg5 {[%clk 0:00:41]} 39. Qxb6 {[%clk 0:01:15]}  Rf6 {[%clk 0:00:41]} 40. Qd8 {[%clk 0:01:11]}  h5 {[%clk 0:00:39]} 41. Qd4 {[%clk 0:01:08]}  Bf3 {[%clk 0:00:36]} 42. h4+ {[%clk 0:01:03]}  Kg6 {[%clk 0:00:36]} 43. e4 {[%clk 0:01:02]}  Bg4 {[%clk 0:00:36]} 44. e5 {[%clk 0:01:02]}  Rf3 {[%clk 0:00:35]} 45. Qd6+ {[%clk 0:00:59]}  Kf5 {[%clk 0:00:34]} 46. e6 {[%clk 0:00:56]}  Re3 {[%clk 0:00:32]} 47. Qf4+ {[%clk 0:00:55]} 1-0


[Site "https://www.chess.com"]

[Event "Titled Tuesday Blitz July 25 Early 2023"]
[White "Garv Gaur"]
[Black "Nenezic, Marko"]
[WhiteFideId "45030839"]
[BlackFideId "912123"]
[WhiteElo "2566"]
[BlackElo "2797"]
[Result "0-1"]
[Round "3"]
[TimeControl "180+2"]
[Date "2023.07.25"]
[WhiteClock "0:00:26"]
[BlackClock "0:01:31"]
[Board "61"]

1. Nf3 {[%clk 0:03:00]}  Nf6 {[%clk 0:02:59]} 2. g3 {[%clk 0:02:58]}  g6 {[%clk 0:02:59]} 3. Bg2 {[%clk 0:02:58]}  Bg7 {[%clk 0:03:00]} 4. O-O {[%clk 0:02:58]}  O-O {[%clk 0:03:01]} 5. c4 {[%clk 0:02:56]}  d6 {[%clk 0:03:00]} 6. Nc3 {[%clk 0:02:55]}  c6 {[%clk 0:02:53]} 7. b3 {[%clk 0:02:54]}  e5 {[%clk 0:02:53]} 8. Bb2 {[%clk 0:02:55]}  Re8 {[%clk 0:02:53]} 9. d3 {[%clk 0:02:54]}  a5 {[%clk 0:02:50]} 10. e3 {[%clk 0:02:54]}  Na6 {[%clk 0:02:49]} 11. d4 {[%clk 0:02:53]}  Qc7 {[%clk 0:02:48]} 12. d5 {[%clk 0:02:51]}  Nc5 {[%clk 0:02:43]} 13. Rc1 {[%clk 0:02:46]}  Bf5 {[%clk 0:02:40]} 14. Ne1 {[%clk 0:02:46]}  e4 {[%clk 0:02:34]} 15. Ne2 {[%clk 0:02:41]}  h5 {[%clk 0:02:29]} 16. h3 {[%clk 0:02:36]}  Qd7 {[%clk 0:02:18]} 17. Kh2 {[%clk 0:02:35]}  cxd5 {[%clk 0:02:09]} 18. cxd5 {[%clk 0:02:34]}  g5 {[%clk 0:02:05]} 19. Nd4 {[%clk 0:02:24]}  Bg6 {[%clk 0:02:04]} 20. Ne2 {[%clk 0:02:05]}  Ng4+ {[%clk 0:02:02]} 21. hxg4 {[%clk 0:02:05]}  Bxb2 {[%clk 0:02:03]} 22. Rc2 {[%clk 0:02:01]}  Bg7 {[%clk 0:02:02]} 23. gxh5 {[%clk 0:01:49]}  Bxh5 {[%clk 0:02:03]} 24. Qd2 {[%clk 0:01:49]}  Bg4 {[%clk 0:02:01]} 25. Nd4 {[%clk 0:01:48]}  Be5 {[%clk 0:01:58]} 26. a3 {[%clk 0:01:26]}  a4 {[%clk 0:01:46]} 27. b4 {[%clk 0:01:25]}  Nb3 {[%clk 0:01:47]} 28. Nxb3 {[%clk 0:01:14]}  axb3 {[%clk 0:01:48]} 29. Rc4 {[%clk 0:01:15]}  f5 {[%clk 0:01:44]} 30. Rh1 {[%clk 0:00:51]}  Rac8 {[%clk 0:01:40]} 31. Bf1 {[%clk 0:00:46]}  b2 {[%clk 0:01:35]} 32. Qc2 {[%clk 0:00:38]}  Rxc4 {[%clk 0:01:34]} 33. Bxc4 {[%clk 0:00:39]}  Rc8 {[%clk 0:01:34]} 34. Ng2 {[%clk 0:00:37]}  b5 {[%clk 0:01:32]} 35. Bxb5 {[%clk 0:00:29]}  Qh7+ {[%clk 0:01:32]} 36. Kg1 {[%clk 0:00:27]}  Rxc2 {[%clk 0:01:30]} 37. Rxh7 {[%clk 0:00:26]}  Kxh7 {[%clk 0:01:31]} 0-1


[Site "https://www.chess.com"]

[Event "Titled Tuesday Blitz July 25 Early 2023"]
[White "Vakhlamov, Igor L."]
[Black "Mei, Austin"]
[WhiteFideId "24126748"]
[BlackFideId "30948479"]
[WhiteElo "2767"]
[BlackElo "2503"]
[Result "1-0"]
[Round "3"]
[TimeControl "180+2"]
[Date "2023.07.25"]
[WhiteClock "0:00:55"]
[BlackClock "0:00:43"]
[Board "64"]

1. e4 {[%clk 0:03:00]}  e5 {[%clk 0:03:00]} 2. Nf3 {[%clk 0:02:55]}  Nc6 {[%clk 0:03:00]} 3. Nc3 {[%clk 0:02:56]}  Nf6 {[%clk 0:02:59]} 4. Bb5 {[%clk 0:02:56]}  Bd6 {[%clk 0:02:59]} 5. a3 {[%clk 0:02:56]}  O-O {[%clk 0:02:58]} 6. d3 {[%clk 0:02:56]}  h6 {[%clk 0:02:58]} 7. g4 {[%clk 0:02:55]}  Nd4 {[%clk 0:02:54]} 8. Bc4 {[%clk 0:02:53]}  Bc5 {[%clk 0:02:20]} 9. g5 {[%clk 0:02:52]}  d5 {[%clk 0:02:20]} 10. gxf6 {[%clk 0:02:28]}  dxc4 {[%clk 0:02:20]} 11. fxg7 {[%clk 0:02:26]}  Re8 {[%clk 0:02:19]} 12. Nxd4 {[%clk 0:02:16]}  exd4 {[%clk 0:02:13]} 13. Qh5 {[%clk 0:01:23]}  Qf6 {[%clk 0:02:10]} 14. Nd5 {[%clk 0:01:17]}  Qxg7 {[%clk 0:02:08]} 15. Bxh6 {[%clk 0:01:15]}  Qg6 {[%clk 0:01:14]} 16. Nf6+ {[%clk 0:01:14]}  Kh8 {[%clk 0:01:11]} 17. Qxg6 {[%clk 0:01:13]}  fxg6 {[%clk 0:01:12]} 18. Nxe8 {[%clk 0:01:14]}  Bg4 {[%clk 0:01:05]} 19. Rg1 {[%clk 0:01:11]}  Bf3 {[%clk 0:01:03]} 20. Nxc7 {[%clk 0:01:09]}  Rc8 {[%clk 0:00:58]} 21. Ne6 {[%clk 0:01:02]}  Bb6 {[%clk 0:00:51]} 22. Bg7+ {[%clk 0:01:02]}  Kg8 {[%clk 0:00:49]} 23. Bxd4 {[%clk 0:01:02]}  Ba5+ {[%clk 0:00:45]} 24. Bc3 {[%clk 0:01:02]}  cxd3 {[%clk 0:00:43]} 25. Bxa5 {[%clk 0:00:56]}  Rxc2 {[%clk 0:00:43]} 26. Bd2 {[%clk 0:00:55]} 1-0


[Site "https://www.chess.com"]

[Event "Titled Tuesday Blitz July 25 Early 2023"]
[White "Remizov, Yaroslav"]
[Black "Lehtosaari, Mauri"]
[WhiteFideId "34134015"]
[BlackFideId "501999"]
[WhiteElo "2757"]
[BlackElo "2488"]
[Result "1-0"]
[Round "3"]
[TimeControl "180+2"]
[Date "2023.07.25"]
[WhiteClock "0:02:39"]
[BlackClock "0:01:39"]
[Board "65"]

1. e4 {[%clk 0:03:00]}  c5 {[%clk 0:02:54]} 2. Nc3 {[%clk 0:03:00]}  e6 {[%clk 0:02:52]} 3. Nf3 {[%clk 0:02:59]}  Nc6 {[%clk 0:02:46]} 4. Bb5 {[%clk 0:02:59]}  Nge7 {[%clk 0:02:27]} 5. O-O {[%clk 0:02:58]}  a6 {[%clk 0:02:25]} 6. Bxc6 {[%clk 0:02:58]}  Nxc6 {[%clk 0:02:26]} 7. d4 {[%clk 0:02:53]}  cxd4 {[%clk 0:02:27]} 8. Nxd4 {[%clk 0:02:54]}  Qc7 {[%clk 0:02:21]} 9. Be3 {[%clk 0:02:49]}  b5 {[%clk 0:02:12]} 10. Re1 {[%clk 0:02:48]}  Bb7 {[%clk 0:02:10]} 11. Nd5 {[%clk 0:02:43]}  exd5 {[%clk 0:01:44]} 12. exd5 {[%clk 0:02:41]}  Nxd4 {[%clk 0:01:39]} 13. Bf4+ {[%clk 0:02:39]} 1-0


[Site "https://www.chess.com"]

[Event "Titled Tuesday Blitz July 25 Early 2023"]
[White "Mahdavi, Reza"]
[Black "Tomaszewski, Kacper"]
[WhiteFideId "12595926"]
[BlackFideId "1127373"]
[WhiteElo "2746"]
[BlackElo "2449"]
[Result "0-1"]
[Round "3"]
[TimeControl "180+2"]
[Date "2023.07.25"]
[WhiteClock "0:00:03"]
[BlackClock "0:00:07"]
[Board "66"]

1. e4 {[%clk 0:02:58]}  Nc6 {[%clk 0:02:57]} 2. d4 {[%clk 0:02:56]}  d5 {[%clk 0:02:57]} 3. e5 {[%clk 0:02:30]}  Bf5 {[%clk 0:02:56]} 4. c3 {[%clk 0:02:27]}  e6 {[%clk 0:02:56]} 5. Nd2 {[%clk 0:02:26]}  Nb8 {[%clk 0:02:56]} 6. f4 {[%clk 0:02:23]}  h5 {[%clk 0:02:51]} 7. Ngf3 {[%clk 0:02:18]}  c5 {[%clk 0:02:49]} 8. Be2 {[%clk 0:02:13]}  Nc6 {[%clk 0:02:50]} 9. O-O {[%clk 0:02:12]}  Nh6 {[%clk 0:02:49]} 10. Kh1 {[%clk 0:02:09]}  Ng4 {[%clk 0:02:36]} 11. Nb3 {[%clk 0:01:53]}  c4 {[%clk 0:02:33]} 12. Nc5 {[%clk 0:01:53]}  b6 {[%clk 0:02:24]} 13. Nb7 {[%clk 0:01:51]}  Qd7 {[%clk 0:02:18]} 14. Nd6+ {[%clk 0:01:51]}  Bxd6 {[%clk 0:02:19]} 15. exd6 {[%clk 0:01:52]}  Qxd6 {[%clk 0:02:19]} 16. Ne5 {[%clk 0:01:49]}  Ncxe5 {[%clk 0:02:13]} 17. fxe5 {[%clk 0:01:50]}  Qe7 {[%clk 0:02:12]} 18. Qe1 {[%clk 0:01:48]}  O-O-O {[%clk 0:02:06]} 19. h3 {[%clk 0:01:48]}  f6 {[%clk 0:01:40]} 20. hxg4 {[%clk 0:01:43]}  hxg4+ {[%clk 0:01:41]} 21. Kg1 {[%clk 0:01:43]}  fxe5 {[%clk 0:01:42]} 22. Qg3 {[%clk 0:01:35]}  exd4 {[%clk 0:01:36]} 23. cxd4 {[%clk 0:01:36]}  Rdf8 {[%clk 0:01:33]} 24. Bf4 {[%clk 0:01:36]}  g5 {[%clk 0:01:17]} 25. Be5 {[%clk 0:01:35]}  Rh4 {[%clk 0:01:02]} 26. Bd6 {[%clk 0:01:34]}  Qg7 {[%clk 0:00:57]} 27. Bxf8 {[%clk 0:01:32]}  Qxd4+ {[%clk 0:00:55]} 28. Rf2 {[%clk 0:01:32]}  Qh8 {[%clk 0:00:54]} 29. Rff1 {[%clk 0:00:45]}  Qd4+ {[%clk 0:00:51]} 30. Qf2 {[%clk 0:00:39]}  Qh8 {[%clk 0:00:50]} 31. Qe3 {[%clk 0:00:38]}  d4 {[%clk 0:00:37]} 32. Qg3 {[%clk 0:00:38]}  d3 {[%clk 0:00:34]} 33. Qd6 {[%clk 0:00:17]}  g3 {[%clk 0:00:27]} 34. Qc6+ {[%clk 0:00:13]}  Kd8 {[%clk 0:00:28]} 35. Qd6+ {[%clk 0:00:14]}  Kc8 {[%clk 0:00:28]} 36. Qxg3 {[%clk 0:00:07]}  Qxf8 {[%clk 0:00:23]} 37. Bxd3 {[%clk 0:00:06]}  Qc5+ {[%clk 0:00:21]} 38. Qf2 {[%clk 0:00:06]}  Bxd3 {[%clk 0:00:14]} 39. Qxc5+ {[%clk 0:00:06]}  bxc5 {[%clk 0:00:15]} 40. Rf7 {[%clk 0:00:05]}  e5 {[%clk 0:00:14]} 41. Re1 {[%clk 0:00:04]}  e4 {[%clk 0:00:14]} 42. Rf5 {[%clk 0:00:05]}  Kd7 {[%clk 0:00:11]} 43. Rxc5 {[%clk 0:00:06]}  g4 {[%clk 0:00:11]} 44. b3 {[%clk 0:00:06]}  Kd6 {[%clk 0:00:11]} 45. Rc8 {[%clk 0:00:05]}  cxb3 {[%clk 0:00:10]} 46. axb3 {[%clk 0:00:06]}  g3 {[%clk 0:00:10]} 47. Rg8 {[%clk 0:00:06]}  Rh5 {[%clk 0:00:07]} 48. Rxg3 {[%clk 0:00:03]}  Rb5 {[%clk 0:00:08]} 49. Kh2 {[%clk 0:00:02]}  a5 {[%clk 0:00:06]} 50. Ra1 {[%clk 0:00:02]}  Kc5 {[%clk 0:00:05]} 51. Rg5+ {[%clk 0:00:03]}  Kb4 {[%clk 0:00:05]} 52. Rxb5+ {[%clk 0:00:03]}  Bxb5 {[%clk 0:00:06]} 53. Kg3 {[%clk 0:00:02]}  Kxb3 {[%clk 0:00:07]} 54. Kf4 {[%clk 0:00:03]}  a4 {[%clk 0:00:06]} 55. Rb1+ {[%clk 0:00:03]}  Kc4 {[%clk 0:00:06]} 56. g4 {[%clk 0:00:02]}  a3 {[%clk 0:00:06]} 57. Kxe4 {[%clk 0:00:02]}  a2 {[%clk 0:00:06]} 58. Rg1 {[%clk 0:00:03]}  Kc3 {[%clk 0:00:05]} 59. g5 {[%clk 0:00:03]}  Bd3+ {[%clk 0:00:05]} 60. Ke3 {[%clk 0:00:03]}  Bb1 {[%clk 0:00:06]} 61. g6 {[%clk 0:00:02]}  a1=Q {[%clk 0:00:06]} 62. g7 {[%clk 0:00:03]}  Qa7+ {[%clk 0:00:07]} 0-1


[Site "https://www.chess.com"]